bitfinex/quotes_ETHUSD_20250924
["timestamp","ask_amount","ask_price","bid_price","bid_amount"]
[1758738697688,0.6888,4188.8,4188.7,2.38737555]
[1758738698084,0.2488,4188.8,4188.7,2.38737555]
[1758738698480,13.12199208,4188.8,4188.7,2.38737555]
[1758738698659,12.68199208,4188.8,4188.7,2.38737555]
[1758738699063,3.0,4188.7,4188.6,6.36541754]
[1758738699461,3.6888,4188.7,4188.6,3.978]
[1758738699758,3.6888,4188.7,4186.6,2.390552]
[1758738700073,9.43319208,4187.7,4187.2,2.62724712]
[1758738700282,9.43319208,4187.7,4187.6,2.38800267]
[1758738700487,9.43319208,4187.7,4187.6,6.36800267]
[1758738701407,9.43319208,4187.7,4187.6,2.38800267]
[1758738701700,9.43319208,4187.7,4187.6,6.36800267]
[1758738704475,12.43319208,4188.3,4188.2,2.3876507]
[1758738704707,12.55239208,4188.3,4188.2,6.3666507]
[1758738704928,12.43319208,4188.3,4188.2,7.0372507]
[1758738705170,12.43319208,4188.3,4188.2,6.6071507]
[1758738705614,12.43319208,4188.3,4188.2,6.3666507]
[1758738706082,12.68239208,4188.3,4188.2,6.3666507]
[1758738706680,12.43319208,4188.3,4188.2,6.3666507]
[1758738706988,12.43319208,4188.3,4188.2,2.3876507]
[1758738707186,12.43319208,4188.3,4188.2,6.3676507]
[1758738707393,12.68239208,4188.3,4188.2,6.3676507]
[1758738708510,3.0,4188.2,4187.9,2.3877809]
[1758738708808,9.43319208,4188.0,4187.4,0.1192]
[1758738709009,9.43319208,4188.0,4187.1,0.002]
[1758738709010,9.43319208,4187.6,4187.5,2.3880597]
[1758738709318,10.11429208,4187.6,4187.5,6.3690597]
[1758738709479,9.68239208,4187.6,4187.5,6.3690597]
[1758738709809,10.11429208,4187.6,4187.5,6.3690597]
[1758738709980,10.11429208,4187.6,4187.5,3.981]
[1758738710510,10.11429208,4187.6,4187.5,6.3690597]
[1758738710511,9.68239208,4187.6,4187.5,6.3690597]
[1758738710912,9.68239208,4187.6,4187.1,0.002]
[1758738710913,10.11429208,4187.6,4187.4,6.37011342]
[1758738711088,0.6811,4187.5,4187.4,3.982]
[1758738711289,3.6811,4187.5,4187.1,0.002]
[1758738711594,9.43319208,4187.2,4187.1,2.39028783]
[1758738711794,10.11429208,4187.2,4187.1,6.37228783]
[1758738712213,10.11429208,4187.2,4187.1,3.984]
[1758738712515,13.48879183,4187.2,4187.1,3.984]
[1758738712748,13.48879183,4187.2,4187.1,0.002]
[1758738713644,13.48879183,4187.2,4187.1,2.39028783]
[1758738714147,13.48879183,4187.2,4187.1,0.002]
[1758738715750,13.05689183,4187.2,4187.1,2.39028783]
[1758738716338,12.80769183,4187.2,4187.1,2.39028783]
[1758738718655,11.52161486,4187.2,4187.1,2.39028783]
[1758738722959,11.52161486,4187.2,4187.1,6.37128783]
[1758738723522,11.52161486,4187.2,4187.1,3.983]
[1758738723760,11.76551486,4187.2,4187.1,3.983]
[1758738724341,11.76551486,4187.2,4187.1,6.37128783]
[1758738725571,11.52161486,4187.2,4187.1,6.37128783]
[1758738726068,11.52161486,4187.2,4187.1,3.983]
[1758738726267,11.52161486,4187.2,4187.1,6.37128783]
[1758738726434,11.76551486,4187.2,4187.1,3.983]
[1758738726856,11.76551486,4187.2,4187.1,6.37128783]
[1758738727372,11.52161486,4187.2,4187.1,6.37128783]
[1758738731275,11.52161486,4187.2,4187.1,2.39028783]
[1758738733644,11.52161486,4187.2,4187.1,2.86468783]
[1758738733986,11.52161486,4187.2,4187.1,2.39028783]
[1758738734350,11.52161486,4187.2,4187.1,6.36828783]
[1758738737969,3.37449975,4187.2,4187.1,6.36828783]
[1758738738301,3.37449975,4187.2,4187.1,7.09128783]
[1758738738507,3.37449975,4187.2,4187.1,8.03925499]
[1758738739409,3.37449975,4187.2,4187.1,7.09128783]
[1758738743874,3.37449975,4187.2,4187.1,6.36828783]
[1758738744680,3.37449975,4187.2,4187.1,2.39028783]
[1758738744882,4.06269975,4187.2,4187.1,0.002]
[1758738745486,3.60929975,4187.2,4187.1,2.39028783]
[1758738745885,3.60929975,4187.2,4187.1,0.002]
[1758738746087,4.06269975,4187.2,4187.1,0.002]
[1758738746277,3.6882,4187.2,4187.1,0.002]
[1758738748339,3.6882,4187.2,4186.6,2.39051741]
[1758738748340,5.50749509,4187.1,4186.6,0.002]
[1758738748481,11.14711511,4186.7,4186.6,0.002]
[1758738749187,11.83531511,4186.7,4186.6,0.002]
[1758738749394,11.38191511,4186.7,4186.6,0.002]
[1758738749976,11.83531511,4186.7,4186.6,0.002]
[1758738750600,11.83531511,4186.7,4186.2,0.002]
[1758738750805,11.14711511,4186.3,4186.2,0.002]
[1758738751006,11.14711511,4186.3,4185.4,0.002]
[1758738751007,2.38920081,4185.5,4185.4,0.002]
[1758738751266,3.40463312,4185.4,4184.1,0.022]
[1758738751408,11.14711511,4184.5,4184.1,0.022]
[1758738751607,0.35404049,4184.4,4184.1,0.022]
[1758738751807,11.14711511,4184.2,4184.1,0.022]
[1758738752013,11.89245539,4184.2,4184.1,0.022]
[1758738752658,3.0,4184.3,4184.2,2.38994311]
[1758738752819,3.0,4184.3,4184.2,3.11294311]
[1758738754169,2.2258,4185.3,4184.6,2.38966845]
[1758738754374,3.0,4185.1,4184.4,2.38977533]
[1758738754555,3.0,4184.9,4184.4,2.63837533]
[1758738754876,3.984,4184.8,4184.7,2.38965512]
[1758738755064,6.984,4184.8,4184.5,0.723]
[1758738755244,8.14711511,4184.6,4184.5,0.723]
[1758738755571,3.0,4184.5,4184.4,2.38982888]
[1758738756041,3.0,4184.5,4184.4,2.63842888]
[1758738756236,3.0,4184.5,4184.4,3.11282888]
[1758738758184,8.14711511,4184.6,4184.4,3.11282888]
[1758738758185,8.14711511,4184.6,4184.5,2.38977177]
[1758738758339,11.14711511,4184.6,4184.5,3.11277177]
[1758738759668,8.14711511,4184.6,4184.5,3.11277177]
[1758738759960,8.14711511,4184.6,4184.5,7.09677177]
[1758738763749,8.14711511,4184.6,4184.5,7.09577177]
[1758738765993,8.14711511,4184.6,4184.5,2.38977177]
[1758738766195,8.14711511,4184.6,4184.5,6.37277177]
[1758738766400,8.14711511,4184.6,4184.5,7.05397177]
[1758738771057,0.49393573,4185.0,4184.9,2.38954335]
[1758738771276,11.64105084,4185.0,4184.9,2.38954335]
[1758738773453,11.86615084,4185.0,4184.9,2.38954335]
[1758738773953,11.64105084,4185.0,4184.9,2.38954335]
[1758738774361,11.64105084,4185.0,4184.7,6.37161575]
[1758738774569,3.6767,4184.9,4184.7,3.982]
[1758738774793,7.6577,4184.9,4184.7,2.38961503]
[1758738774998,0.2251,4184.8,4184.6,2.38971466]
[1758738775209,11.37221511,4184.7,4184.6,2.38971466]
[1758738776372,11.14711511,4184.7,4184.6,2.38971466]
[1758738780614,12.43880389,4184.7,4184.6,2.38971466]
[1758738782694,0.37473573,4185.0,4184.9,2.38954335]
[1758738782898,0.001,4185.1,4185.0,2.38948626]
[1758738783093,0.001,4185.1,4185.0,3.12468112]
[1758738783294,0.001,4185.1,4185.0,3.10078626]
[1758738783733,0.001,4185.1,4185.0,3.12468112]
[1758738784166,0.001,4185.1,4185.0,3.10078626]
[1758738785820,0.001,4185.1,4185.0,3.91668112]
[1758738786156,3.001,4185.5,4185.4,3.18125789]
[1758738786157,0.001,4185.5,4185.4,3.18125789]
[1758738786449,0.001,4185.5,4185.4,7.99475789]
[1758738791020,0.02,4186.9,4185.5,3.18120081]
[1758738791221,0.02,4186.9,4186.8,2.38845896]
[1758738791222,9.57800389,4186.9,4186.8,2.38845896]
[1758738791452,12.57800389,4186.9,4186.8,2.38845896]
[1758738791771,0.02,4186.9,4186.8,2.38845896]
[1758738792058,0.02,4186.9,4186.8,3.06875896]
[1758738792219,0.02,4186.9,4186.8,2.38845896]
[1758738792554,12.45880389,4186.9,4186.8,2.38845896]
[1758738793058,12.67344194,4186.9,4186.8,2.38845896]
[1758738793438,12.44614194,4186.9,4186.8,2.38845896]
[1758738793832,12.44614194,4186.9,4186.8,6.37345896]
[1758738795235,12.44614194,4186.9,4186.6,2.38853797]
[1758738795236,3.0,4186.8,4186.6,2.38853797]
[1758738795437,3.7892,4186.8,4186.2,3.985]
[1758738795641,3.0,4186.2,4185.9,0.1192]
[1758738795951,12.55800389,4186.0,4185.9,2.3889725]
[1758738796263,13.22800389,4186.0,4185.9,2.3889725]
[1758738796633,12.55800389,4186.0,4185.9,2.3889725]
[1758738797041,16.54400389,4186.0,4185.9,2.3889725]
[1758738797725,17.21400389,4186.0,4185.4,3.986]
[1758738797944,9.43880389,4185.6,4185.5,2.38920081]
[1758738798878,9.66610389,4185.6,4185.5,2.38920081]
[1758738799247,13.10880389,4185.6,4185.5,2.38920081]
[1758738800673,13.10880389,4185.6,4185.1,2.38937572]
[1758738800998,9.43880389,4185.2,4184.8,0.1192]
[1758738801138,3.0,4185.1,4185.0,2.38948626]
[1758738801337,3.2273,4185.1,4185.0,2.38948626]
[1758738802166,3.0,4185.1,4185.0,2.38948626]
[1758738803971,3.0,4185.1,4184.3,0.1212]
[1758738804171,3.0,4185.1,4184.9,2.38953128]
[1758738804172,0.3465,4185.0,4184.9,2.38953128]
[1758738804466,0.1192,4185.0,4184.9,2.38953128]
[1758738805236,9.55800389,4185.0,4184.9,2.38953128]
[1758738806562,3.1192,4185.4,4185.3,2.38931498]
[1758738806776,3.988,4185.7,4185.6,2.38914373]
[1758738806978,3.1192,4185.7,4185.6,2.38914373]
[1758738807287,9.43880389,4185.9,4185.8,2.38902957]
[1758738807785,0.1192,4186.4,4186.0,2.38891543]
[1758738807952,0.1192,4186.4,4186.3,2.38874423]
[1758738810595,3.0,4186.5,4186.4,2.38868717]
[1758738811907,9.55800389,4186.6,4186.4,2.38868717]
[1758738811908,9.55800389,4186.6,4186.5,2.38863012]
[1758738812209,12.55800389,4186.6,4186.5,2.62563012]
[1758738812878,12.55800389,4186.6,4186.5,3.06893012]
[1758738813087,12.55800389,4186.6,4186.5,6.37763012]
[1758738814305,12.78530389,4186.6,4186.5,2.38863012]
[1758738816292,12.55800389,4186.6,4186.5,2.38863012]
[1758738818740,12.78530389,4186.6,4186.5,2.38863012]
[1758738819120,13.22800389,4186.6,4186.5,2.38863012]
[1758738820131,12.55800389,4186.6,4186.5,2.38863012]
[1758738820634,12.78530389,4186.6,4185.9,0.1192]
[1758738820846,9.43880389,4186.2,4185.7,2.50824528]
[1758738820997,9.43880389,4186.2,4186.1,2.38885836]
[1758738821343,9.66610389,4186.2,4186.1,2.38885836]
[1758738821701,9.43880389,4186.2,4186.1,2.38885836]
[1758738828412,9.68720389,4186.2,4186.1,2.38885836]
[1758738828620,12.43880389,4186.2,4185.7,0.1192]
[1758738828820,9.43880389,4185.8,4185.7,2.38907053]
[1758738829050,10.24760389,4185.8,4185.7,2.38907053]
[1758738829472,9.80640389,4185.8,4185.7,2.38907053]
[1758738829674,9.55800389,4185.8,4185.7,2.38907053]
[1758738831387,9.80640389,4185.8,4185.6,0.002]
[1758738831570,6.986,4185.7,4185.6,2.39114373]
[1758738831778,7.2344,4185.7,4185.6,2.39114373]
[1758738832448,6.986,4185.7,4185.6,2.39114373]
[1758738833086,6.986,4185.7,4185.6,2.64044373]
[1758738833390,3.0,4185.7,4185.6,3.08954373]
[1758738833694,3.4938531,4185.7,4185.6,3.08954373]
[1758738833892,3.4938531,4185.7,4185.6,2.64044373]
[1758738834096,3.4938531,4185.7,4185.6,2.39114373]
[1758738834678,3.4938531,4185.7,4185.6,2.64044373]
[1758738835193,3.4938531,4185.7,4185.6,0.002]
[1758738836001,3.4938531,4185.7,4185.6,2.39114373]
[1758738836869,3.4938531,4185.7,4185.6,0.002]
[1758738837078,3.4938531,4185.7,4185.6,2.39114373]
[1758738838207,3.4938531,4185.7,4185.6,0.002]
[1758738838585,3.4938531,4185.7,4185.6,2.39114373]
[1758738838771,3.4938531,4185.7,4185.6,0.002]
[1758738839171,3.4938531,4185.7,4185.6,2.39114373]
[1758738839576,3.4938531,4185.7,4185.6,0.002]
[1758738839907,3.4938531,4185.7,4185.6,2.39114373]
[1758738840107,3.4938531,4185.7,4185.6,0.002]
[1758738840307,3.7429531,4185.7,4185.6,0.002]
[1758738840535,4.2070531,4185.7,4185.6,0.002]
[1758738840714,8.1900531,4185.7,4185.6,0.002]
[1758738841028,7.8154,4185.7,4185.6,0.002]
[1758738841326,8.16906628,4185.7,4185.3,0.002]
[1758738841532,12.43880389,4185.4,4185.2,0.002]
[1758738841694,7.45686628,4185.3,4185.2,0.002]
[1758738841891,10.55938126,4185.3,4185.2,0.002]
[1758738842071,10.55938126,4185.3,4184.8,0.002]
[1758738842072,3.31747162,4185.2,4184.8,0.002]
[1758738842272,12.43880389,4184.9,4184.8,0.002]
[1758738842531,16.77747017,4184.9,4184.8,0.002]
[1758738842678,24.3692278,4184.9,4184.8,0.002]
[1758738843408,2.38961566,4184.8,4184.4,0.002]
[1758738843611,3.1192,4184.4,4184.1,0.022]
[1758738843910,7.1062,4184.4,4184.1,0.022]
[1758738844212,7.8194,4184.4,4184.1,0.022]
[1758738845148,2.38988942,4184.3,4184.0,0.002]
[1758738845313,3.1192,4184.0,4183.9,0.002]
[1758738845510,7.45986628,4184.0,4183.9,0.002]
[1758738845707,8.17306628,4184.0,4183.9,0.002]
[1758738846308,8.17306628,4184.0,4183.7,0.002]
[1758738846561,3.1192,4183.7,4183.5,0.002]
[1758738846720,6.988,4183.6,4183.5,0.002]
[1758738846923,7.2371,4183.6,4183.5,0.002]
[1758738850625,6.988,4183.6,4183.5,0.002]
[1758738853853,16.17394704,4183.6,4183.5,0.002]
[1758738855130,8.01526628,4183.6,4183.5,0.002]
[1758738855328,7.58766628,4183.6,4183.5,0.002]
[1758738855861,7.34166628,4183.6,4183.5,0.002]
[1758738856156,15.87522105,4183.6,4183.5,0.002]
[1758738858054,11.88722105,4183.6,4183.5,2.61894301]
[1758738858258,15.52155477,4183.6,4183.5,3.06944301]
[1758738859848,15.52155477,4183.6,4183.5,0.002]
[1758738860049,16.54882105,4183.6,4183.5,0.002]
[1758738860450,16.12122105,4183.6,4183.5,0.002]
[1758738861640,15.87522105,4183.6,4183.5,2.39234301]
[1758738862135,11.53355477,4183.6,4183.5,3.06944301]
[1758738862338,15.52255477,4183.6,4183.5,3.06944301]
[1758738863113,15.52255477,4183.6,4183.5,0.6791]
[1758738863577,23.68123553,4183.6,4183.5,0.002]
[1758738863777,23.92723553,4183.6,4183.5,0.002]
[1758738863965,11.53355477,4183.6,4183.5,0.002]
[1758738864141,15.52255477,4183.6,4183.5,0.002]
[1758738865285,15.76855477,4183.6,4183.5,0.002]
[1758738865981,15.52255477,4183.6,4183.5,0.002]
[1758738866357,15.52255477,4183.6,4183.5,2.39234301]
[1758738866744,15.52255477,4183.6,4183.5,0.002]
[1758738867456,16.19615477,4183.6,4183.5,0.002]
[1758738867889,15.76855477,4183.6,4183.5,0.002]
[1758738868804,15.76855477,4183.6,4183.5,0.002]
[1758738869813,15.76855477,4183.6,4183.4,0.002]
[1758738869814,3.0,4183.5,4183.4,0.002]
[1758738869998,0.1192,4183.4,4183.3,0.002]
[1758738870307,5.13446628,4183.4,4183.3,0.002]
[1758738870693,4.70686628,4183.4,4183.3,0.002]
[1758738873406,4.46086628,4183.4,4183.3,0.002]
[1758738874603,4.70686628,4183.4,4183.3,0.002]
[1758738874830,4.46086628,4183.4,4183.3,0.002]
[1758738875006,5.13446628,4183.4,4183.3,0.002]
[1758738875313,4.70686628,4183.4,4183.3,0.002]
[1758738876091,4.46086628,4183.4,4183.3,0.002]
[1758738876721,4.70686628,4183.4,4183.3,0.002]
[1758738878105,4.46086628,4183.4,4183.3,0.002]
[1758738881217,0.71886628,4183.4,4183.3,0.002]
[1758738881422,4.70486628,4183.4,4183.3,0.002]
[1758738881949,4.45886628,4183.4,4183.3,0.002]
[1758738883720,4.45886628,4183.4,4183.3,2.39245729]
[1758738883885,4.1062,4183.4,4183.3,2.62995729]
[1758738884086,4.1062,4183.4,4183.3,3.10365729]
[1758738884892,12.26488076,4183.4,4183.3,3.10365729]
[1758738885499,12.26488076,4183.4,4183.3,0.7132]
[1758738886134,12.26488076,4183.4,4183.3,0.002]
[1758738888642,12.26488076,4183.4,4183.3,2.39245729]
[1758738888848,12.26488076,4183.4,4183.3,0.002]
[1758738889047,12.26488076,4183.4,4183.3,0.4757]
[1758738889353,12.26488076,4183.4,4183.3,0.002]
[1758738890949,12.26488076,4183.4,4183.3,2.39245729]
[1758738891146,12.26488076,4183.4,4183.3,0.002]
[1758738891652,12.26488076,4183.4,4183.3,3.10365729]
[1758738891817,12.26488076,4183.4,4183.3,0.7132]
[1758738892251,12.26488076,4183.4,4183.3,0.2395]
[1758738892916,12.26488076,4183.4,4183.3,2.62995729]
[1758738893330,12.26488076,4183.4,4183.3,3.10365729]
[1758738894163,11.15968076,4183.4,4183.3,3.10365729]
[1758738895877,11.15968076,4183.4,4183.3,2.39245729]
[1758738896076,11.15968076,4183.4,4183.3,3.10365729]
[1758738897466,19.31836152,4183.4,4183.3,3.10365729]
[1758738897646,11.15968076,4183.4,4183.3,3.10365729]
[1758738900182,11.15968076,4183.4,4183.3,2.63705729]
[1758738900338,11.15968076,4183.4,4183.3,3.11145729]
[1758738900538,11.15968076,4183.4,4183.3,2.39245729]
[1758738900779,11.15968076,4183.4,4183.3,2.63705729]
[1758738901094,11.15968076,4183.4,4183.3,3.11145729]
[1758738902591,3.001,4183.4,4183.3,3.11145729]
[1758738906492,3.001,4183.4,4183.3,4.06245599]
[1758738906698,3.001,4183.4,4183.3,4.08636056]
[1758738906897,0.001,4183.4,4183.3,4.08636056]
[1758738907197,0.001,4183.4,4183.3,3.13536186]
[1758738909201,0.001,4183.4,4183.3,3.11145729]
[1758738909414,0.001,4183.4,4183.3,3.13536186]
[1758738909967,0.001,4183.4,4183.3,3.11145729]
[1758738911113,0.001,4183.4,4183.3,6.37545729]
[1758738911419,0.001,4183.4,4183.3,7.09445729]
[1758738911572,0.001,4183.4,4183.3,9.48574344]
[1758738914797,0.001,4183.4,4183.3,7.09445729]
[1758738915123,0.001,4183.4,4183.3,21.59445729]
[1758738915605,0.001,4183.4,4183.3,22.38645729]
[1758738916124,0.001,4183.4,4183.3,22.50565729]
[1758738919197,0.001,4184.2,4183.3,22.50565729]
[1758738919198,0.001,4184.2,4184.1,2.39000023]
[1758738919416,0.001,4184.2,4184.1,7.62630025]
[1758738919586,0.001,4184.2,4184.1,7.84840025]
[1758738919782,0.001,4184.2,4184.1,22.87192321]
[1758738919988,0.001,4184.2,4184.1,18.88892321]
[1758738920188,0.001,4184.2,4184.1,22.87192321]
[1758738922025,0.001,4184.2,4184.1,18.88892321]
[1758738922319,0.001,4184.2,4184.1,22.87192321]
[1758738940602,1e-08,4184.7,4184.2,2.38994311]
[1758738940760,1e-08,4184.7,4184.6,2.38971466]
[1758738940958,1e-08,4184.7,4184.6,6.5148118]
[1758738941160,1e-08,4184.7,4184.6,8.48191466]
[1758738941394,1e-08,4184.7,4184.6,23.65561466]
[1758738941595,1e-08,4184.7,4184.6,26.48710081]
[1758738944000,1e-08,4184.7,4184.6,27.27910081]
[1758738944364,1e-08,4184.7,4184.6,30.27910081]
[1758738949193,1e-08,4184.7,4184.6,27.61340081]
[1758738949394,1e-08,4184.7,4184.6,30.28720081]
[1758738951506,1e-08,4184.7,4184.6,23.63240081]
[1758738951692,0.71630001,4184.7,4184.6,22.62340081]
[1758738952004,0.001,4185.1,4185.0,3.18148626]
[1758738952305,9.443484,4185.1,4185.0,2.38948626]
[1758738952505,9.443484,4185.1,4185.0,6.37048626]
[1758738952705,9.915984,4185.1,4185.0,6.37048626]
[1758738953883,9.989584,4185.1,4185.0,6.37048626]
[1758738954284,0.4735,4185.1,4185.0,6.37048626]
[1758738954498,0.001,4185.1,4185.0,8.03849493]
[1758738955410,0.001,4185.1,4185.0,22.53849493]
[1758738956114,0.001,4185.1,4185.0,25.21229493]
[1758738956273,0.001,4185.1,4185.0,18.55749493]
[1758738956477,0.001,4185.1,4185.0,21.66248626]
[1758738960112,0.001,4185.1,4185.0,22.36178626]
[1758738960489,1e-08,4185.6,4185.5,2.38920081]
[1758738960817,1e-08,4185.6,4185.5,6.37020081]
[1758738961037,1e-08,4185.6,4185.5,6.60420081]
[1758738961206,1e-08,4185.6,4185.5,7.74917835]
[1758738962441,1e-08,4185.6,4185.5,7.51517835]
[1758738964321,1e-08,4185.6,4185.5,22.01517835]
[1758738965548,1e-08,4185.6,4185.5,22.71447835]
[1758738966043,1e-08,4185.6,4185.5,22.83367835]
[1758738966744,1e-08,4185.6,4185.5,22.36837835]
[1758738966948,1e-08,4185.6,4185.5,22.13437835]
[1758738968956,1e-08,4185.6,4185.5,18.15337835]
[1758738969163,1e-08,4185.6,4185.5,22.13337835]
[1758738970073,1e-08,4185.6,4185.5,22.36737835]
[1758738970636,1e-08,4185.6,4185.5,22.83267835]
[1758738974396,1e-08,4185.6,4185.5,22.36737835]
[1758738974743,1e-08,4185.6,4185.5,22.13337835]
[1758738976071,1e-08,4185.6,4185.5,22.36057835]
[1758738976272,1e-08,4185.6,4185.5,22.80847835]
[1758738976766,1e-08,4185.6,4185.5,22.36057835]
[1758738976994,1e-08,4185.6,4185.5,22.80847835]
[1758738978503,1e-08,4185.9,4185.8,3.18102957]
[1758738978796,1e-08,4185.9,4185.8,7.30411986]
[1758738978999,1e-08,4185.9,4185.8,7.50742957]
[1758738979299,1e-08,4185.9,4185.8,22.45532957]
[1758738981247,1e-08,4185.9,4185.8,24.44632957]
[1758738981535,1e-08,4185.9,4185.8,26.83761572]
[1758738986429,1e-08,4185.9,4185.8,26.38971572]
[1758738987337,1e-08,4185.9,4185.8,26.83761572]
[1758738990823,0.00100001,4185.9,4185.8,26.83761572]
[1758738992039,0.00100001,4185.9,4185.8,26.38971572]
[1758738992336,0.00100001,4185.9,4185.8,26.83761572]
[1758738995053,0.00100001,4185.9,4185.8,26.83561572]
[1758738996121,0.00100001,4185.9,4185.8,26.16051572]
[1758738996514,0.00100001,4185.9,4185.8,24.17051572]
[1758738996728,0.00100001,4185.9,4185.8,26.16051572]
[1758738997368,8.69779796,4185.9,4185.8,17.00822957]
[1758738997564,8.69779796,4185.9,4185.8,20.98722957]
[1758738997863,8.69779796,4185.9,4185.8,21.77922957]
[1758738998308,0.54840001,4185.9,4185.8,21.77922957]
[1758739000255,0.54840001,4185.9,4185.8,7.27922957]
[1758739000950,0.54840001,4185.9,4185.8,21.77922957]
[1758739002286,8.69779796,4185.9,4185.8,21.77922957]
[1758739002815,8.69779796,4185.9,4185.8,20.98722957]
[1758739004451,8.69779796,4185.9,4185.8,17.00822957]
[1758739004651,8.69779796,4185.9,4185.8,20.98722957]
[1758739004846,8.69779796,4185.9,4185.8,2.50822957]
[1758739005050,8.69779796,4185.9,4185.8,6.36802957]
[1758739005361,8.69779796,4185.9,4185.8,2.38902957]
[1758739005518,8.69779796,4185.9,4185.8,6.36802957]
[1758739005720,8.69779796,4185.9,4185.7,2.38904062]
[1758739005919,8.15039796,4185.9,4185.8,6.36802957]
[1758739006115,0.00100001,4185.9,4185.8,6.36802957]
[1758739006440,0.52680001,4185.9,4185.8,6.36802957]
[1758739007854,0.52680001,4185.9,4185.7,2.38908421]
[1758739008062,0.645,4185.8,4185.1,0.1212]
[1758739008219,0.645,4185.8,4185.7,2.38908665]
[1758739008914,0.645,4185.8,4185.6,2.38914182]
[1758739009153,0.5258,4185.7,4185.6,2.38914182]
[1758739009529,8.67519795,4185.7,4185.6,2.38914182]
[1758739009869,11.67519795,4185.7,4185.6,3.979]
[1758739010073,11.67519795,4185.7,4185.6,6.36814373]
[1758739010379,11.67519795,4185.7,4185.6,3.979]
[1758739010673,11.67519795,4185.7,4185.6,6.36814373]
[1758739010877,11.67519795,4185.7,4185.4,2.38920365]
[1758739011043,0.645,4185.6,4185.5,6.36820081]
[1758739012287,8.79439795,4185.6,4185.5,6.36820081]
[1758739013365,8.79439795,4185.6,4185.3,2.39131147]
[1758739013626,0.5258,4185.5,4185.4,6.36823134]
[1758739014675,0.5258,4185.5,4185.4,3.979]
[1758739015405,0.5258,4185.5,4185.3,2.3913077]
[1758739015406,0.1192,4185.4,4185.3,2.39131498]
[1758739015700,0.1192,4185.4,4185.3,0.002]
[1758739015701,0.645,4185.4,4185.3,0.002]
[1758739016042,1.01967319,4185.4,4185.3,0.002]
[1758739017278,1.01967319,4185.4,4185.3,2.39131498]
[1758739017697,1.01967319,4185.4,4185.3,0.002]
[1758739018216,1.01967319,4185.4,4185.3,2.39131498]
[1758739018557,0.94607319,4185.4,4185.3,2.39131498]
[1758739018791,0.49387319,4185.4,4185.3,2.39131498]
[1758739020619,3.0,4185.7,4185.6,2.38914373]
[1758739020795,3.1192,4185.7,4185.6,6.36914373]
[1758739020994,0.1192,4185.7,4185.6,6.36914373]
[1758739021315,0.1192,4185.7,4185.6,7.05584373]
[1758739021454,0.001,4186.1,4185.8,2.38902957]
[1758739021814,8.15039796,4185.9,4185.8,6.36902957]
[1758739024599,9.4341634,4185.9,4185.8,6.36902957]
[1758739024774,9.4341634,4185.9,4185.8,2.38902957]
[1758739024968,9.4341634,4185.9,4185.8,6.36902957]
[1758739025172,9.9002634,4185.9,4185.8,2.38902957]
[1758739025363,9.4341634,4185.9,4185.8,6.36902957]
[1758739029799,9.4341634,4185.9,4185.8,6.60092957]
[1758739030178,9.4341634,4185.9,4185.8,6.36902957]
[1758739030683,9.4341634,4185.9,4185.8,6.37102957]
[1758739036290,9.4341634,4185.9,4185.8,6.61312957]
[1758739038717,9.4341634,4185.9,4185.8,6.37102957]
[1758739039815,0.00100001,4185.9,4185.8,6.61312957]
[1758739040038,0.00100001,4185.9,4185.8,7.97485282]
[1758739041237,0.00100001,4185.9,4185.8,22.47485282]
[1758739042420,9.4341634,4185.9,4185.8,18.49485282]
[1758739042624,9.4341634,4185.9,4185.8,21.11212957]
[1758739043135,9.4341634,4185.9,4185.8,21.57362957]
[1758739043497,9.4341634,4185.9,4185.8,17.13312957]
[1758739043701,9.4341634,4185.9,4185.8,21.11212957]
[1758739044106,9.4341634,4185.9,4185.8,6.61212957]
[1758739044530,9.4341634,4185.9,4185.8,21.57362957]
[1758739047011,0.00100001,4185.9,4185.8,21.57362957]
[1758739047530,0.00100001,4185.9,4185.8,7.07362957]
[1758739048123,0.00100001,4185.9,4185.8,22.53182282]
[1758739048321,0.00100001,4185.9,4185.8,23.32382282]
[1758739048552,0.00100001,4185.9,4185.8,23.44302282]
[1758739051183,0.00100001,4185.9,4185.8,8.94302282]
[1758739051552,0.00100001,4185.9,4185.8,23.44302282]
[1758739057134,0.00100001,4185.9,4185.8,19.46402282]
[1758739057328,0.00100001,4185.9,4185.8,25.43202282]
[1758739070909,0.001,4186.8,4186.7,3.18051601]
[1758739071203,1e-08,4186.9,4186.8,0.792]
[1758739071714,1e-08,4186.9,4186.8,15.31588458]
[1758739071869,1e-08,4186.9,4186.8,15.292]
[1758739072068,1e-08,4186.9,4186.8,17.68045896]
[1758739078585,1e-08,4186.9,4186.8,17.90705896]
[1758739079398,1e-08,4186.9,4186.8,18.35485896]
[1758739080410,1e-08,4186.9,4186.8,20.54299464]
[1758739081098,1e-08,4186.9,4186.8,20.66219464]
[1758739081509,1e-08,4186.9,4186.8,20.21439464]
[1758739081705,1e-08,4186.9,4186.8,19.98779464]
[1758739082887,1e-08,4186.9,4186.8,17.00765896]
[1758739083221,0.53230001,4186.9,4186.8,20.98465896]
[1758739084619,0.45870001,4186.9,4186.8,20.98465896]
[1758739086022,1e-08,4186.9,4186.8,20.98465896]
[1758739086735,1e-08,4186.9,4186.8,22.49115896]
[1758739086910,1e-08,4186.9,4186.8,24.88244511]
[1758739091240,1e-08,4186.9,4186.8,24.16794511]
[1758739092951,1e-08,4186.9,4186.8,24.39604511]
[1758739094355,1e-08,4186.9,4186.8,24.86764511]
[1758739095963,1e-08,4186.9,4186.8,24.16794511]
[1758739096159,1e-08,4186.9,4186.8,24.86764511]
[1758739097366,1e-08,4186.9,4186.8,20.89064511]
[1758739097530,1e-08,4186.9,4186.8,26.85664511]
[1758739098746,1e-08,4186.9,4186.8,24.86664511]
[1758739099058,1e-08,4186.9,4186.8,26.85864511]
[1758739100744,1e-08,4186.9,4186.8,20.89264511]
[1758739100957,1e-08,4186.9,4186.8,26.85864511]
[1758739101336,1e-08,4186.9,4186.8,20.89264511]
[1758739101531,1e-08,4186.9,4186.8,23.25774511]
[1758739101731,1e-08,4186.9,4186.8,25.24774511]
[1758739102063,1e-08,4186.9,4186.8,26.73944511]
[1758739107589,0.4324,4188.2,4188.0,3.17977459]
[1758739107775,8.21908859,4188.3,4188.0,7.15477459]
[1758739107980,0.77448255,4188.1,4188.0,7.15477459]